fUST/lending_fUST_20240704
["ID","MTS","AMOUNT","RATE_DAILY","PERIOD"]
[331079580,1720067448999,-151.0,0.00015616,2]
[331079581,1720067449008,-151.0,0.00015616,2]
[331079582,1720067449018,-151.0,0.00015616,2]
[331079583,1720067449028,-151.7632,0.00015616,2]
[331079584,1720067449037,-1340.90746803,0.00015616,2]
[331079585,1720067449047,-1340.90746803,0.00015616,2]
[331079586,1720067449056,-1340.90746803,0.00015616,2]
[331079587,1720067449067,-1340.90746803,0.00015616,2]
[331079588,1720067449076,-1340.90746803,0.00015616,2]
[331079589,1720067449085,-1340.90746803,0.00015616,2]
[331079590,1720067449094,-1340.90746803,0.00015616,2]
[331079591,1720067449103,-1340.90746803,0.00015616,2]
[331079592,1720067449113,-1340.90746803,0.00015616,2]
[331079593,1720067449122,-1340.90746803,0.00015616,2]
[331079594,1720067449131,-1340.90746803,0.00015616,2]
[331079595,1720067449140,-1340.90746803,0.00015616,2]
[331079596,1720067449150,-1340.90746803,0.00015616,2]
[331079597,1720067449159,-1340.90746803,0.00015616,2]
[331079598,1720067449168,-1340.90746803,0.00015616,2]
[331079599,1720067449178,-1340.90746803,0.00015616,2]
[331079600,1720067449188,-1340.90746803,0.00015616,2]
[331079601,1720067449197,-1340.90746803,0.00015616,2]
[331079602,1720067449206,-1340.90746803,0.00015616,2]
[331079603,1720067449215,-1340.90746803,0.00015616,2]
[331079604,1720067449224,-1340.90746803,0.00015616,2]
[331079605,1720067449233,-1340.90746803,0.00015616,2]
[331079606,1720067449242,-1340.90746803,0.00015616,2]
[331079607,1720067449251,-1340.90746803,0.00015616,2]
[331079608,1720067449260,-1340.90746803,0.00015616,2]
[331079609,1720067449270,-1340.90746803,0.00015616,2]
[331079610,1720067449279,-1340.90746803,0.00015616,2]
[331079611,1720067449288,-1340.90746803,0.00015616,2]
[331079612,1720067449297,-1340.90746803,0.00015616,2]
[331079613,1720067449306,-1340.90746803,0.00015616,2]
[331079614,1720067449315,-1340.90746803,0.00015616,2]
[331079615,1720067449324,-1340.90746803,0.00015616,2]
[331079616,1720067449333,-1340.90746803,0.00015616,2]
[331079617,1720067449342,-1340.90746803,0.00015616,2]
[331079618,1720067449351,-1340.90746803,0.00015616,2]
[331079619,1720067449360,-1340.90746803,0.00015616,2]
[331079620,1720067449370,-1340.90746803,0.00015616,2]
[331079621,1720067449379,-1340.90746803,0.00015616,2]
[331079622,1720067449388,-1340.90746803,0.00015616,2]
[331079623,1720067449397,-1340.90746803,0.00015616,2]
[331079624,1720067449407,-1340.90746803,0.00015616,2]
[331079625,1720067449416,-1340.90746803,0.00015616,2]
[331079626,1720067449425,-1340.90746803,0.00015616,2]
[331079627,1720067449434,-1340.90746803,0.00015616,2]
[331079628,1720067449443,-1340.90746803,0.00015616,2]
[331079629,1720067449452,-1340.90746803,0.00015616,2]
[331079630,1720067449461,-1340.90746803,0.00015616,2]
[331079631,1720067449470,-1340.90746803,0.00015616,2]
[331079632,1720067449479,-1340.90746803,0.00015616,2]
[331079633,1720067449488,-8886.99719577,0.00015616,2]
[331079634,1720067449498,-8886.99719577,0.00015616,2]
[331079635,1720067449507,-8886.99719577,0.00015616,2]
[331079636,1720067449517,-8886.99719577,0.00015616,2]
[331079637,1720067449526,-8886.99719577,0.00015616,2]
[331079638,1720067449535,-8886.99719577,0.00015616,2]
[331079639,1720067449544,-8886.99719577,0.00015616,2]
[331079640,1720067449554,-8886.99719577,0.00015616,2]
[331079641,1720067449563,-8886.99719577,0.00015616,2]
[331079642,1720067449572,-8886.99719577,0.00015616,2]
[331079643,1720067449581,-8886.99719577,0.00015616,2]
[331079644,1720067449590,-8886.99719577,0.00015616,2]
[331079645,1720067449599,-8886.99719577,0.00015616,2]
[331079646,1720067449608,-8886.99719577,0.00015616,2]
[331079647,1720067449617,-8886.99719577,0.00015616,2]
[331079648,1720067449626,-8886.99719577,0.00015616,2]
[331079649,1720067449637,-8886.99719577,0.00015616,2]
[331079650,1720067449646,-8886.99719577,0.00015616,2]
[331079651,1720067449655,-8886.99719577,0.00015616,2]
[331079652,1720067449665,-8886.99719577,0.00015616,2]
[331079653,1720067449674,-8886.99719577,0.00015616,2]
[331079654,1720067449683,-8886.99719577,0.00015616,2]
[331079655,1720067449692,-8886.99719577,0.00015616,2]
[331079656,1720067449702,-8886.99719577,0.00015616,2]
[331079657,1720067449710,-8886.99719577,0.00015616,2]
[331079658,1720067449720,-8886.99719577,0.00015616,2]
[331079659,1720067449729,-8886.99719577,0.00015616,2]
[331079660,1720067449738,-8886.99719577,0.00015616,2]
[331079661,1720067449830,-8886.99719577,0.00015616,2]
[331079662,1720067449839,-8886.99719577,0.00015616,2]
[331079663,1720067449850,-8886.99719577,0.00015616,2]
[331079664,1720067449859,-8886.99719577,0.00015616,2]
[331079665,1720067449868,-8886.99719577,0.00015616,2]
[331079666,1720067449877,-8886.99719577,0.00015616,2]
[331079667,1720067449887,-8886.99719577,0.00015616,2]
[331079668,1720067449896,-8886.99719577,0.00015616,2]
[331079669,1720067449905,-8886.99719577,0.00015616,2]
[331079670,1720067449915,-8886.99719577,0.00015616,2]
[331079671,1720067449923,-9216.14524006,0.00015616,2]
[331079672,1720067449932,-9216.14524006,0.00015616,2]
[331079673,1720067449942,-9216.14524005,0.00015616,2]
[331079674,1720067449951,-151.0,0.00015616,2]
[331079675,1720067449960,-151.0,0.00015616,2]
[331079676,1720067449972,-151.0,0.00015616,2]
[331079677,1720067449982,-286.99682144,0.00015616,2]
[331079678,1720067449991,-151.0,0.00015616,2]
[331079679,1720067450000,-151.0,0.00015616,2]
[331079680,1720067450011,-151.0,0.00015616,2]
[331079681,1720067450020,-500.0,0.00015652,2]
[331079682,1720067450030,-1490.86,0.00015652,2]
[331079683,1720067450039,-9633.62,0.00015652,2]
[331079684,1720067450048,-1162.38,0.00015652,2]
[331079685,1720067450061,-2194.42,0.00015652,2]
[331079686,1720067450071,-614.22,0.00015652,2]
[331079687,1720067450081,-501.65,0.00015652,2]
[331079688,1720067450090,-878.64,0.00015653,2]
[331079689,1720067450099,-500.0,0.00015653,2]
[331079690,1720067450108,-500.0,0.00015653,2]
[331079691,1720067450118,-500.0,0.00015653,2]
[331079692,1720067450127,-1290.1,0.00015653,2]
[331079693,1720067450137,-500.0,0.00015653,2]
[331079694,1720067450146,-500.0,0.00015653,2]
[331079695,1720067450155,-734.57,0.00015653,2]
[331079696,1720067450164,-500.0,0.00015653,2]
[331079697,1720067450174,-1070.48,0.00015653,2]
[331079698,1720067450183,-500.0,0.00015653,2]
[331079699,1720067450192,-620.58,0.00015653,2]
[331079700,1720067450202,-539.77,0.00015653,2]
[331079701,1720067450211,-500.0,0.00015653,2]
[331079702,1720067450220,-500.0,0.00015653,2]
[331079703,1720067450229,-500.0,0.00015653,2]
[331079704,1720067450239,-500.0,0.00015653,2]
[331079705,1720067450248,-277.10834094,0.00015653,2]
[331079706,1720067450257,-500.0,0.00015653,2]
[331079707,1720067450268,-500.0,0.00015653,2]
[331079708,1720067450277,-521.91,0.00015653,2]
[331079709,1720067450286,-500.0,0.00015653,2]
[331079710,1720067450295,-500.0,0.00015653,2]
[331079711,1720067450305,-500.0,0.00015653,2]
[331079712,1720067450314,-500.0,0.00015653,2]
[331079713,1720067450324,-500.0,0.00015653,2]
[331079714,1720067450334,-500.0,0.00015653,2]
[331079715,1720067450343,-500.0,0.00015653,2]
[331079716,1720067450352,-1752.19,0.00015653,2]
[331079717,1720067450361,-690.1,0.00015653,2]
[331079718,1720067450371,-500.0,0.00015653,2]
[331079719,1720067450380,-1984.32,0.00015653,2]
[331079720,1720067450389,-972.06,0.00015653,2]
[331079721,1720067450398,-719.38,0.00015653,2]
[331079722,1720067450407,-500.0,0.00015653,2]
[331079723,1720067450416,-819.82,0.00015653,2]
[331079724,1720067450425,-3775.77,0.00015653,2]
[331079725,1720067450434,-500.0,0.00015653,2]
[331079726,1720067450443,-647.17,0.00015653,2]
[331079727,1720067450452,-500.0,0.00015653,2]
[331079728,1720067450461,-500.0,0.00015653,2]
[331079729,1720067450470,-500.0,0.00015653,2]
[331079730,1720067450479,-500.0,0.00015653,2]
[331079731,1720067450488,-1216.88,0.00015653,2]
[331079732,1720067450497,-778.7,0.00015653,2]
[331079733,1720067450506,-3668.47,0.00015653,2]
[331079734,1720067450516,-500.0,0.00015654,2]
[331079735,1720067450525,-500.0,0.00015654,2]
[331079736,1720067450534,-500.0,0.00015654,2]
[331079737,1720067450543,-500.0,0.00015654,2]
[331079738,1720067450552,-500.0,0.00015654,2]
[331079739,1720067450561,-529.16,0.00015654,2]
[331079740,1720067450570,-500.0,0.00015654,2]
[331079741,1720067450579,-500.0,0.00015654,2]
[331079742,1720067450588,-656.15,0.00015654,2]
[331079743,1720067450597,-259.07453144,0.00015654,2]
[331079744,1720067450606,-668.82,0.00015654,2]
[331079745,1720067450615,-515.26,0.00015654,2]
[331079746,1720067450624,-694.78,0.00015654,2]
[331079747,1720067450633,-500.0,0.00015654,2]
[331079748,1720067450642,-500.0,0.00015654,2]
[331079749,1720067450651,-500.0,0.00015654,2]
[331079750,1720067450660,-500.0,0.00015654,2]
[331079751,1720067450669,-500.0,0.00015654,2]
[331079752,1720067450679,-500.0,0.00015654,2]
[331079753,1720067450688,-7720.81,0.00015654,2]
[331079754,1720067450697,-500.0,0.00015654,2]
[331079755,1720067450706,-500.0,0.00015654,2]
[331079756,1720067450715,-500.0,0.00015654,2]
[331079757,1720067450723,-2207.54,0.00015654,2]
[331079758,1720067450732,-778.68,0.00015654,2]
[331079759,1720067450741,-151.0,0.00015654,2]
[331079760,1720067450750,-500.0,0.00015659,2]
[331079761,1720067450760,-500.0,0.00015659,2]
[331079762,1720067450769,-500.0,0.00015659,2]
[331079763,1720067450779,-597.56,0.00015659,2]
[331079764,1720067450788,-500.0,0.00015659,2]
[331079765,1720067450797,-500.0,0.00015659,2]
[331079766,1720067450808,-706.01,0.00015659,2]
[331079767,1720067450818,-500.0,0.00015659,2]
[331079768,1720067450827,-500.0,0.00015659,2]
[331079769,1720067450836,-537.08697881,0.00015659,2]
[331079770,1720067450844,-500.0,0.00015659,2]
[331079771,1720067450853,-500.0,0.00015659,2]
[331079772,1720067450862,-500.0,0.00015659,2]
[331079773,1720067450872,-492.3864458,0.00015659,2]
[331079774,1720067450881,-500.0,0.00015659,2]
[331079775,1720067450890,-500.0,0.00015659,2]
[331079776,1720067450899,-500.0,0.00015659,2]
[331079777,1720067450908,-500.0,0.00015659,2]
[331079778,1720067450917,-500.0,0.00015659,2]
[331079779,1720067450927,-500.0,0.00015659,2]
[331079780,1720067450936,-500.0,0.00015659,2]
[331079781,1720067450946,-500.0,0.00015659,2]
[331079782,1720067450954,-516.23,0.00015659,2]
[331079783,1720067450963,-500.0,0.00015659,2]
[331079784,1720067450977,-500.0,0.00015659,2]
[331079785,1720067450986,-500.0,0.00015659,2]
[331079786,1720067450995,-500.0,0.00015659,2]
[331079787,1720067451004,-500.0,0.00015659,2]
[331079788,1720067451015,-500.0,0.00015659,2]
[331079789,1720067451024,-500.0,0.00015659,2]
[331079790,1720067451033,-500.0,0.00015659,2]
[331079791,1720067451046,-500.0,0.00015659,2]
[331079792,1720067451056,-354.47965291,0.0001566,2]
[331079793,1720067451066,-500.0,0.00015664,2]
[331079794,1720067451076,-1053.92,0.00015664,2]
[331079795,1720067451085,-3788.04,0.00015664,2]
[331079796,1720067451095,-764.91,0.00015664,2]
[331079797,1720067451104,-182.31920119,0.00015664,2]
[331079798,1720067451113,-578.61,0.00015664,2]
[331079799,1720067451123,-500.0,0.00015664,2]
[331079800,1720067451132,-500.0,0.00015664,2]
[331079801,1720067451142,-500.0,0.00015665,2]
[331079802,1720067451151,-500.0,0.00015665,2]
[331079803,1720067451160,-500.0,0.00015665,2]
[331079804,1720067451169,-500.0,0.00015665,2]
[331079805,1720067451179,-500.0,0.00015665,2]
[331079806,1720067451189,-8891.61,0.00015665,2]
[331079807,1720067451199,-500.0,0.00015669,2]
[331079808,1720067451208,-1895.03,0.00015669,2]
[331079809,1720067451217,-940.03,0.00015669,2]
[331079810,1720067451226,-562.32,0.00015669,2]
[331079811,1720067451235,-844.0,0.00015669,2]
[331079812,1720067451244,-4941.99,0.00015669,2]
[331079813,1720067451254,-2741.87,0.00015669,2]
[331079814,1720067451264,-500.0,0.00015676,2]
[331079815,1720067451276,-595.0,0.000157,2]
[331079816,1720067451285,-150.0,0.00015782,2]
[331079817,1720067451296,-150.0,0.00015782,2]
[331079818,1720067451306,-562.51180615,0.00015926,2]
[331079819,1720067451315,-1490.86,0.00015926,2]
[331079820,1720067451324,-9633.62,0.00015926,2]
[331079821,1720067451410,-1162.38,0.00015926,2]
[331079822,1720067451420,-151.0,0.00015926,2]
[331079823,1720067451430,-2194.42,0.00015926,2]
[331079824,1720067451439,-614.22,0.00015926,2]
[331079825,1720067451449,-501.65,0.00015926,2]
[331079826,1720067451458,-13735.38805658,0.00015927,2]
[331079827,1720067451467,-878.64,0.00015927,2]
[331079828,1720067451476,-369.50214599,0.00015927,2]
[331079829,1720067451485,-500.0,0.00015927,2]
[331079830,1720067451494,-500.0,0.00015927,2]
[331079831,1720067451503,-1290.1,0.00015927,2]
[331079832,1720067451512,-500.0,0.00015927,2]
[331079833,1720067451522,-500.0,0.00015927,2]
[331079834,1720067451531,-734.57,0.00015927,2]
[331079835,1720067451540,-500.0,0.00015927,2]
[331079836,1720067451549,-1070.48,0.00015927,2]
[331079837,1720067451558,-500.0,0.00015927,2]
[331079838,1720067451567,-620.58,0.00015927,2]
[331079839,1720067451577,-539.77,0.00015927,2]
[331079840,1720067451586,-500.0,0.00015927,2]
[331079841,1720067451595,-474.98140258,0.00015927,2]
[331079842,1720067451604,-500.0,0.00015927,2]
[331079843,1720067451613,-500.0,0.00015927,2]
[331079844,1720067451622,-500.0,0.00015927,2]
[331079845,1720067451632,-500.0,0.00015927,2]
[331079846,1720067451641,-521.91,0.00015927,2]
[331079847,1720067451650,-500.0,0.00015927,2]
[331079848,1720067451659,-500.0,0.00015927,2]
[331079849,1720067451668,-500.0,0.00015927,2]
[331079850,1720067451677,-506.65348835,0.00015927,2]
[331079851,1720067451686,-500.0,0.00015927,2]
[331079852,1720067451695,-500.0,0.00015927,2]
[331079853,1720067451704,-500.0,0.00015927,2]
[331079854,1720067451714,-1752.19,0.00015927,2]
[331079855,1720067451723,-690.1,0.00015927,2]
[331079856,1720067451732,-500.0,0.00015927,2]
[331079857,1720067451741,-1984.32,0.00015927,2]
[331079858,1720067451752,-972.06,0.00015927,2]
[331079859,1720067451762,-719.38,0.00015927,2]
[331079860,1720067451771,-500.0,0.00015927,2]
[331079861,1720067451780,-819.82,0.00015927,2]
[331079862,1720067451789,-3775.77,0.00015927,2]
[331079863,1720067451799,-479.53194326,0.00015927,2]
[331079864,1720067451808,-647.17,0.00015927,2]
[331079865,1720067451818,-403.92013656,0.00015927,2]
[331079866,1720067451827,-500.0,0.00015927,2]
[331079867,1720067451842,-500.0,0.00015927,2]
[331079868,1720067451851,-500.0,0.00015927,2]
[331079869,1720067451860,-1216.88,0.00015927,2]
[331079870,1720067451869,-778.7,0.00015927,2]
[331079871,1720067451877,-3668.47,0.00015927,2]
[331079872,1720067451887,-500.0,0.00015928,2]
[331079873,1720067451896,-500.0,0.00015928,2]
[331079874,1720067451906,-359.63453479,0.00015928,2]
[331079875,1720067451914,-588.72205016,0.00015928,2]
[331079876,1720067451923,-500.0,0.00015928,2]
[331079877,1720067451933,-529.16,0.00015928,2]
[331079878,1720067451943,-500.0,0.00015928,2]
[331079879,1720067451952,-320.32768437,0.00015928,2]
[331079880,1720067451961,-500.0,0.00015928,2]
[331079881,1720067451972,-656.15,0.00015928,2]
[331079882,1720067451983,-668.82,0.00015928,2]
[331079883,1720067451992,-515.26,0.00015928,2]
[331079884,1720067452001,-694.78,0.00015928,2]
[331079885,1720067452010,-500.0,0.00015928,2]
[331079886,1720067452022,-500.0,0.00015928,2]
[331079887,1720067452030,-500.0,0.00015928,2]
[331079888,1720067452040,-500.0,0.00015928,2]
[331079889,1720067452051,-500.0,0.00015928,2]
[331079890,1720067452060,-500.0,0.00015928,2]
[331079891,1720067452070,-7720.81,0.00015928,2]
[331079892,1720067452079,-500.0,0.00015928,2]
[331079893,1720067452088,-500.0,0.00015928,2]
[331079894,1720067452097,-500.0,0.00015928,2]
[331079895,1720067452107,-2207.54,0.00015928,2]
[331079896,1720067452119,-778.68,0.00015928,2]
[331079897,1720067452136,-500.0,0.00015933,2]
[331079898,1720067452152,-291.46888691,0.00015933,2]
[331079899,1720067452167,-500.0,0.00015933,2]
[331079900,1720067452184,-597.56,0.00015933,2]
[331079901,1720067452201,-537.96871869,0.00015933,2]
[331079902,1720067452218,-648.56520105,0.00015933,2]
[331079903,1720067452234,-706.01,0.00015933,2]
[331079904,1720067452248,-244.19633141,0.00015933,2]
[331079905,1720067452262,-500.0,0.00015933,2]
[331079906,1720067452277,-500.0,0.00015933,2]
[331079907,1720067452291,-511.82036638,0.00015933,2]
[331079908,1720067452303,-517.10676978,0.00015933,2]
[331079909,1720067452317,-500.0,0.00015933,2]
[331079910,1720067452332,-500.0,0.00015933,2]
[331079911,1720067452346,-500.0,0.00015933,2]
[331079912,1720067452363,-500.0,0.00015933,2]
[331079913,1720067452376,-618.44430778,0.00015933,2]
[331079914,1720067452387,-500.0,0.00015933,2]
[331079915,1720067452401,-500.0,0.00015933,2]
[331079916,1720067452416,-500.0,0.00015933,2]
[331079917,1720067452428,-516.23,0.00015933,2]
[331079918,1720067452441,-500.0,0.00015933,2]
[331079919,1720067452454,-338.96349667,0.00015933,2]
[331079920,1720067452466,-638.58535056,0.00015933,2]
[331079921,1720067452478,-500.0,0.00015933,2]
[331079922,1720067452490,-500.0,0.00015933,2]
[331079923,1720067452503,-500.0,0.00015933,2]
[331079924,1720067452516,-500.0,0.00015933,2]
[331079925,1720067452529,-500.0,0.00015933,2]
[331079926,1720067452542,-537.32435733,0.00015933,2]
[331079927,1720067452554,-500.0,0.00015938,2]
[331079928,1720067452566,-1053.92,0.00015938,2]
[331079929,1720067452578,-3788.04,0.00015938,2]
[331079930,1720067452591,-764.91,0.00015938,2]
[331079931,1720067452603,-578.61,0.00015938,2]
[331079932,1720067452615,-500.0,0.00015938,2]
[331079933,1720067452627,-500.0,0.00015938,2]
[331079934,1720067452640,-500.0,0.00015939,2]
[331079935,1720067452652,-500.0,0.00015939,2]
[331079936,1720067452664,-500.0,0.00015939,2]
[331079937,1720067452677,-500.0,0.00015939,2]
[331079938,1720067452690,-500.0,0.00015939,2]
[331079939,1720067452701,-8891.61,0.00015939,2]
[331079940,1720067452714,-500.0,0.00015943,2]
[331079941,1720067452725,-525.72498376,0.00015943,2]
[331079942,1720067453234,-350.76409723,0.00014278,2]
[331079943,1720067453246,-149.23590277,0.00014278,2]
[331079944,1720067453255,-213.56002669,0.00014278,2]
[331079945,1720067453528,-108.89452743,0.00014278,2]
[331079946,1720067453646,-177.54544588,0.00014278,2]
[331079947,1720067453655,-500.0,0.00014289,2]
[331079948,1720067453665,-500.0,0.00014289,2]
[331079949,1720067453674,-500.0,0.00014552,2]
[331079950,1720067453685,-618.30367312,0.00014552,2]
[331079951,1720067453694,-503.4872777,0.00014563,2]
[331079952,1720067453703,-500.0,0.00014563,2]
[331079953,1720067453712,-500.0,0.00014826,2]
[331079954,1720067453722,-500.0,0.00014837,2]
[331079955,1720067453731,-500.0,0.000151,2]
[331079956,1720067453741,-631.77,0.00015104,2]
[331079957,1720067453750,-500.0,0.00015111,2]
[331079958,1720067453760,-292.73329724,0.00015374,2]
[331079959,1720067453772,-207.26670276,0.00015374,2]
[331079960,1720067453782,-126.13197434,0.00015378,2]
[331079961,1720067453793,-300.0,0.00015378,2]
[331079963,1720067826132,426.01080009,0.000139,2]
[331079964,1720067836779,3293.37687449,0.0001,2]
[331079965,1720067881566,3772.28040147,0.0001,2]
[331079966,1720067940039,3772.28040147,0.00012121,2]
[331079967,1720067989091,3772.28040147,0.00012121,2]
[331079969,1720068106107,3551.8015074,0.00013275,2]
[331079970,1720068171726,3772.28040147,0.00013275,2]
[331079971,1720068263773,162.90143711,0.00013275,2]
[331079972,1720068277615,3772.28040147,0.00013275,2]
[331079973,1720068332113,-187.67404651,0.00014048,2]
[331079974,1720068377577,2116.8984615,0.00013275,2]
[331079975,1720068384642,313.39042702,9.999e-05,2]
[331079976,1720068427332,-1107.17494046,0.00014048,2]
[331079977,1720068429111,-479.04941748,0.00014048,2]
[331079978,1720068432106,-1112.49863034,0.00014048,2]
[331079979,1720068432128,-858.63509125,0.00014172,2]
[331079980,1720068432149,-165.89797093,0.00014266,2]
[331079981,1720068440084,-134.10202907,0.00014266,2]
[331079982,1720068440104,-500.0,0.00014267,2]
[331079983,1720068440124,-379.98580901,0.00014267,2]
[331079984,1720068442147,-123.84500571,0.00014267,2]
[331079985,1720068442168,-500.0,0.00014267,2]
[331079986,1720068442189,-500.0,0.00014267,2]
[331079987,1720068442209,-500.0,0.00014267,2]
[331079988,1720068442230,-500.0,0.00014267,2]
[331079989,1720068442250,-500.0,0.00014267,2]
[331079990,1720068442270,-500.0,0.00014267,2]
[331079991,1720068442293,-244.32719681,0.00014267,2]
[331079992,1720068442314,-181.52321374,0.00014267,2]
[331079993,1720068442335,-399.46799876,0.00014267,2]
[331079994,1720068442357,-500.0,0.00014267,2]
[331079995,1720068442380,-647.82753588,0.00014267,2]
[331079996,1720068442402,-3155.91518825,0.00014268,2]
[331079997,1720068447151,-150.99909156,0.00014267,2]
[331080012,1720068632282,-269.79891899,0.00014172,2]
[331080019,1720068638583,-481.50678581,0.00014172,2]
[331080020,1720068638594,-184.77709126,0.00014172,2]
[331080021,1720068638604,-184.77709125,0.00014178,2]
[331080022,1720068638613,-491.9260868,0.00014266,2]
[331080023,1720068638623,-122.43708421,0.00014267,2]
[331080024,1720068638632,-370.36095955,0.00014267,2]
[331080025,1720068638642,-500.0,0.00014267,2]
[331080026,1720068638651,-503.65186447,0.00014267,2]
[331080027,1720068638661,-251.08887241,0.00014267,2]
[331080028,1720068638670,-504.72112275,0.00014267,2]
[331080029,1720068638679,-505.03447168,0.00014267,2]
[331080030,1720068638689,-500.0,0.00014267,2]
[331080031,1720068638698,-503.19946116,0.00014267,2]
[331080032,1720068638708,-1421.99,0.00014267,2]
[331080033,1720068638718,-503.34185757,0.00014267,2]
[331080034,1720068638727,-500.0,0.00014267,2]
[331080035,1720068638736,-500.0,0.00014267,2]
[331080036,1720068638746,-500.0,0.00014267,2]
[331080037,1720068638756,-506.81045856,0.00014267,2]
[331080038,1720068638766,-503.74093966,0.00014267,2]
[331080039,1720068638775,-504.74927562,0.00014267,2]
[331080040,1720068638785,-504.90281223,0.00014267,2]
[331080041,1720068638794,-500.0,0.00014267,2]
[331080042,1720068638803,-500.0,0.00014267,2]
[331080043,1720068638813,-8733.88,0.00014267,2]
[331080044,1720068638822,-1035.13,0.00014267,2]
[331080045,1720068638831,-7419.06,0.00014267,2]
[331080046,1720068638841,-1948.63,0.00014267,2]
[331080047,1720068638850,-500.0,0.00014267,2]
[331080048,1720068638860,-500.0,0.00014267,2]
[331080049,1720068638869,-500.0,0.00014267,2]
[331080050,1720068638879,-541.83,0.00014267,2]
[331080051,1720068638889,-500.0,0.00014267,2]
[331080052,1720068638899,-500.0,0.00014267,2]
[331080053,1720068638908,-500.0,0.00014267,2]
[331080054,1720068638917,-500.0,0.00014267,2]
[331080055,1720068638926,-519.25998991,0.00014267,2]
[331080056,1720068638936,-500.0,0.00014267,2]
[331080057,1720068638945,-500.0,0.00014267,2]
[331080058,1720068638955,-535.05,0.00014267,2]
[331080059,1720068638964,-636.45,0.00014267,2]
[331080060,1720068638973,-122632.140721,0.00014268,2]
[331080061,1720068638983,-862.0,0.00014272,2]
[331080062,1720068638992,-500.0,0.00014272,2]
[331080063,1720068639002,-500.0,0.00014272,2]
[331080064,1720068639011,-500.0,0.00014272,2]
[331080065,1720068639021,-1235.26,0.00014272,2]
[331080066,1720068639031,-500.0,0.00014272,2]
[331080067,1720068639040,-500.0,0.00014272,2]
[331080068,1720068639050,-500.0,0.00014272,2]
[331080069,1720068639060,-710.1,0.00014272,2]
[331080070,1720068639069,-1032.62,0.00014272,2]
[331080071,1720068639078,-500.0,0.00014272,2]
[331080072,1720068639088,-631.82353349,0.00014272,2]
[331080073,1720068639098,-500.0,0.00014272,2]
[331080074,1720068639108,-606.69,0.00014272,2]
[331080075,1720068639118,-500.0,0.00014272,2]
[331080076,1720068639128,-526.95,0.00014272,2]
[331080077,1720068639139,-500.0,0.00014272,2]
[331080078,1720068639149,-500.0,0.00014272,2]
[331080079,1720068639158,-500.0,0.00014272,2]
[331080080,1720068639167,-500.0,0.00014272,2]
[331080081,1720068639177,-500.0,0.00014272,2]
[331080082,1720068639187,-500.0,0.00014272,2]
[331080083,1720068639197,-500.0,0.00014272,2]
[331080084,1720068639207,-500.0,0.00014272,2]
[331080085,1720068639217,-500.0,0.00014272,2]
[331080086,1720068639227,-500.0,0.00014272,2]
[331080087,1720068639236,-500.0,0.00014272,2]
[331080088,1720068639246,-500.0,0.00014272,2]
[331080089,1720068639256,-500.0,0.00014272,2]
[331080090,1720068639267,-500.0,0.00014272,2]
[331080091,1720068639276,-500.0,0.00014272,2]
[331080092,1720068639286,-500.0,0.00014272,2]
[331080093,1720068639297,-500.0,0.00014272,2]
[331080094,1720068639307,-500.0,0.00014272,2]
[331080095,1720068639316,-503.79930799,0.00014272,2]
[331080096,1720068639326,-502.54265345,0.00014272,2]
[331080097,1720068639340,-500.0,0.00014272,2]
[331080098,1720068639349,-500.0,0.00014272,2]
[331080099,1720068639359,-631.91,0.00014272,2]
[331080100,1720068639368,-500.0,0.00014272,2]
[331080101,1720068639378,-1519.49,0.00014272,2]